bitfinex/quotes_SOLUSD_20241220
["timestamp","ask_amount","ask_price","bid_price","bid_amount"]
[1734728790055,16.52511743,190.55,190.48,1.6095]
[1734728790862,13.1206,190.54,190.47,16.52511743]
[1734728791178,16.52511743,190.53,190.45,16.52511743]
[1734728792078,16.52511743,190.53,190.39,0.78745942]
[1734728792282,16.52511743,190.53,190.45,16.52511743]
[1734728794490,16.52511743,190.53,190.45,16.52511743]
[1734728798373,16.52511743,190.52,190.41,23.776884]
[1734728798555,16.52511743,190.52,190.44,16.52511743]
[1734728799383,16.52511743,190.48,190.38,1.5259]
[1734728799686,16.52511743,190.48,190.4,16.52511743]
[1734728800088,16.52511743,190.46,190.38,1.5259]
[1734728800266,16.52511743,190.47,190.39,16.52511743]
[1734728800467,16.52511743,190.47,190.4,16.52511743]
[1734728800875,16.52511743,190.48,190.4,16.52511743]
[1734728801187,16.52511743,190.46,190.39,16.52511743]
[1734728801667,16.52511743,190.47,190.4,16.52511743]
[1734728802392,29.65001743,190.48,190.41,16.52511743]
[1734728803276,16.52511743,190.47,190.4,16.52511743]
[1734728804489,16.52511743,190.48,190.41,16.52511743]
[1734728804687,36.52511743,190.49,190.42,16.52511743]
[1734728804872,20.0,190.48,190.42,16.52511743]
[1734728805190,16.52511743,190.49,190.42,16.52511743]
[1734728806272,16.52511743,190.47,190.4,16.52511743]
[1734728806766,10.60366466,190.47,190.4,10.60366466]
[1734728807388,10.60366466,190.47,190.38,1.5259]
[1734728807589,10.60366466,190.45,190.38,12.12956466]
[1734728807789,10.60366466,190.46,190.39,10.60366466]
[1734728808171,10.60366466,190.47,190.39,10.60366466]
[1734728808367,10.60366466,190.47,190.4,10.60366466]
[1734728808567,40.61495706,190.55,190.38,1.5259]
[1734728808568,9.07495706,190.55,190.38,1.5259]
[1734728808943,10.60366466,190.51,190.44,10.60366466]
[1734728809217,30.60366466,190.52,190.44,10.60366466]
[1734728809372,30.60366466,190.52,190.45,10.60366466]
[1734728810211,10.60366466,190.52,190.45,10.60366466]
[1734728810397,10.60366466,190.51,190.44,10.60366466]
[1734728812907,10.60366466,190.52,190.44,10.60366466]
[1734728816103,13.1214,190.53,190.44,10.60366466]
[1734728816104,10.60366466,190.51,190.44,10.60366466]
[1734728816425,13.1214,190.53,190.4,23.776884]
[1734728816579,10.60366466,190.5,190.43,10.60366466]
[1734728816897,10.60366466,190.51,190.43,10.60366466]
[1734728817203,10.60366466,190.51,190.4,23.776884]
[1734728817387,10.60366466,190.51,190.44,10.60366466]
[1734728817697,10.60366466,190.52,190.45,10.60366466]
[1734728818508,10.60366466,190.52,190.41,0.78745971]
[1734728818509,10.60366466,190.51,190.44,10.60366466]
[1734728819006,10.60366466,190.51,190.42,10.60366466]
[1734728819303,10.60366466,190.49,190.42,10.60366466]
[1734728820510,10.60366466,190.49,190.39,13.1309]
[1734728820680,10.60366466,190.49,190.41,10.60366466]
[1734728821306,10.60366466,190.47,190.38,12.12956466]
[1734728821979,10.60366466,190.47,190.4,10.60366466]
[1734728822808,10.60366466,190.49,190.42,10.60366466]
[1734728823942,10.60366466,190.51,190.42,10.60366466]
[1734728824212,10.60366466,190.54,190.46,10.60366466]
[1734728824706,10.60366466,190.54,190.47,10.60366466]
[1734728825292,13.1179,190.58,190.51,10.60366466]
[1734728825492,23.72156466,190.58,190.51,10.60366466]
[1734728826991,1.5171,190.59,190.52,10.60366466]
[1734728827197,10.60366466,190.59,190.52,10.60366466]
[1734728827497,20.0,190.61,190.54,10.60366466]
[1734728827706,10.60366466,190.62,190.55,10.60366466]
[1734728828309,21.2775,190.64,190.55,10.60366466]
[1734728828619,10.60366466,190.63,190.56,10.60366466]
[1734728829020,10.60366466,190.62,190.55,10.60366466]
[1734728829392,10.60366466,190.63,190.56,10.60366466]
[1734728830193,10.60366466,190.62,190.55,10.60366466]
[1734728831128,10.60366466,190.61,190.54,10.60366466]
[1734728831702,13.1139,190.64,190.55,12.17566466]
[1734728831914,10.60366466,190.62,190.55,12.17566466]
[1734728834031,13.1139,190.64,190.55,12.17566466]
[1734728834210,10.60366466,190.62,190.55,12.17566466]
[1734728834719,20.0,190.64,190.55,12.17566466]
[1734728834931,10.60366466,190.62,190.55,12.17566466]
[1734728835222,10.60366466,190.62,190.55,1.572]
[1734728835616,10.60366466,190.61,190.55,1.572]
[1734728836008,26.2239,190.67,190.56,10.60366466]
[1734728836208,10.60366466,190.65,190.57,10.60366466]
[1734728836608,10.60366466,190.66,190.58,10.60366466]
[1734728836808,10.60366466,190.67,190.59,10.60366466]
[1734728837216,10.60366466,190.68,190.6,10.60366466]
[1734728837905,10.60366466,190.67,190.6,10.60366466]
[1734728838103,26.2055,190.8,190.66,10.60366466]
[1734728838309,26.2055,190.8,190.68,10.60366466]
[1734728838516,10.60366466,190.76,190.68,10.60366466]
[1734728838838,10.60366466,190.75,190.68,10.60366466]
[1734728839004,10.60366466,190.74,190.62,23.776884]
[1734728839328,10.60366466,190.74,190.66,10.60366466]
[1734728839505,30.60366466,190.73,190.66,10.60366466]
[1734728839704,20.0,190.73,190.66,10.60366466]
[1734728840602,20.0,190.73,190.66,16.52152937]
[1734728840835,20.0,190.73,190.68,16.52152937]
[1734728841016,16.52152937,190.77,190.7,16.52152937]
[1734728841334,13.1036,190.79,190.68,16.52152937]
[1734728841335,20.0,190.74,190.68,16.52152937]
[1734728841703,36.52152937,190.74,190.67,16.52152937]
[1734728841903,20.0,190.74,190.68,16.52152937]
[1734728842621,36.52152937,190.76,190.69,16.52152937]
[1734728842925,16.52152937,190.75,190.69,16.52152937]
[1734728843116,36.52152937,190.76,190.69,16.52152937]
[1734728843314,13.1036,190.79,190.74,16.52152937]
[1734728843529,29.62512937,190.79,190.72,16.52152937]
[1734728844108,16.52152937,190.78,190.71,16.52152937]
[1734728844523,29.62512937,190.79,190.72,16.52152937]
[1734728844929,16.52152937,190.77,190.7,16.52152937]
[1734728845130,16.52152937,190.73,190.66,16.52152937]
[1734728845302,16.52152937,190.72,190.65,18.07892937]
[1734728845632,16.52152937,190.73,190.66,16.52152937]
[1734728846225,16.52152937,190.73,190.67,16.52152937]
[1734728847427,16.52152937,190.72,190.65,18.07892937]
[1734728848413,16.52152937,190.68,190.56,1.5116]
[1734728848615,16.52152937,190.67,190.6,16.52152937]
[1734728848818,16.52152937,190.65,190.58,16.52152937]
[1734728850647,16.52152937,190.63,190.56,1.5116]
[1734728850832,16.52152937,190.63,190.56,16.52152937]
[1734728851140,39.3353,190.67,190.57,16.52152937]
[1734728851141,16.52152937,190.64,190.57,16.52152937]
[1734728851639,16.52152937,190.63,190.56,16.52152937]
[1734728852441,16.52152937,190.66,190.59,16.52152937]
[1734728852725,29.63352937,190.67,190.6,16.52152937]
[1734728852932,16.52152937,190.66,190.59,16.52152937]
[1734728853128,29.63352937,190.67,190.6,16.52152937]
[1734728854239,29.63352937,190.67,190.59,16.52152937]
[1734728854437,29.63352937,190.67,190.56,20.0]
[1734728854438,29.63352937,190.67,190.6,16.52152937]
[1734728854732,16.52152937,190.64,190.57,16.52152937]
[1734728856312,16.52152937,190.63,190.56,16.52152937]
[1734728857038,16.52152937,190.62,190.55,16.52152937]
[1734728857246,16.52152937,190.63,190.56,16.52152937]
[1734728857839,16.52152937,190.58,190.52,1.5877]
[1734728858020,16.52152937,190.57,190.5,16.52152937]
[1734728858616,16.52152937,190.56,190.49,16.52152937]
[1734728858829,16.52152937,190.57,190.5,16.52152937]
[1734728859419,16.52152937,190.56,190.49,16.52152937]
[1734728859720,36.52152937,190.54,190.47,16.52152937]
[1734728860045,29.64022937,190.57,190.5,16.52152937]
[1734728860737,16.52152937,190.59,190.52,16.52152937]
[1734728861249,16.52152937,190.6,190.53,16.52152937]
[1734728861846,16.52152937,190.59,190.52,16.52152937]
[1734728862015,16.52152937,190.57,190.5,16.52152937]
[1734728862220,16.52152937,190.57,190.47,23.776884]
[1734728862436,20.7913,190.61,190.49,16.52152937]
[1734728862437,16.52152937,190.56,190.49,16.52152937]
[1734728862750,16.52152937,190.57,190.5,16.52152937]
[1734728864141,13.1183,190.58,190.45,23.776884]
[1734728864438,13.1183,190.58,190.48,16.52152937]
[1734728864439,36.52152937,190.55,190.48,16.52152937]
[1734728864639,20.0,190.53,190.49,16.52152937]
[1734728864824,20.0,190.53,190.48,16.52152937]
[1734728865333,26.2384,190.56,190.44,1.6193]
[1734728865523,16.52152937,190.51,190.44,1.6193]
[1734728865717,16.52152937,190.5,190.44,1.6193]
[1734728867232,16.52152937,190.5,190.43,16.52152937]
[1734728867233,16.52152937,190.48,190.4,16.52152937]
[1734728867546,16.52152937,190.47,190.39,18.17812937]
[1734728868152,16.52152937,190.47,190.4,16.52152937]
[1734728869427,29.64622937,190.49,190.41,16.52152937]
[1734728869625,36.52152937,190.46,190.37,23.776884]
[1734728869839,20.0,190.46,190.39,16.52152937]
[1734728870522,16.52152937,190.45,190.36,0.6761982]
[1734728870722,16.52152937,190.45,190.37,16.52152937]
[1734728870931,16.52152937,190.45,190.36,0.6761982]
[1734728871146,16.52152937,190.43,190.36,0.6761982]
[1734728871533,29.64892937,190.44,190.36,17.19772757]
[1734728872225,16.52152937,190.41,190.36,0.6761982]
[1734728872426,16.52152937,190.42,190.36,0.6761982]
[1734728872645,36.52152937,190.38,190.36,0.6761982]
[1734728873855,49.65342937,190.38,190.36,0.6761982]
[1734728877534,20.0,190.38,190.36,0.6761982]
[1734728877740,8.0582,190.43,190.36,17.19772757]
[1734728877947,29.64912937,190.44,190.36,17.19772757]
[1734728878154,29.64912937,190.44,190.37,16.52152937]
[1734728879161,29.64912937,190.44,190.36,17.19772757]
[1734728879526,20.0,190.41,190.37,16.52152937]
[1734728879723,20.0,190.41,190.36,17.19772757]
[1734728879924,20.0,190.4,190.36,17.19772757]
[1734728880155,20.0,190.4,190.36,0.6761982]
[1734728880735,16.52152937,190.44,190.37,16.52152937]
[1734728880959,16.52152937,190.43,190.36,0.6761982]
[1734728881629,16.52152937,190.44,190.36,17.19772757]
[1734728881931,29.64992937,190.43,190.36,17.19772757]
[1734728882336,16.52152937,190.42,190.36,0.6761982]
[1734728882554,13.1284,190.43,190.36,17.19772757]
[1734728882852,16.52152937,190.42,190.36,0.6761982]
[1734728883055,16.52152937,190.4,190.36,0.6761982]
[1734728883256,16.52152937,190.39,190.36,0.6761982]
[1734728883768,36.52152937,190.4,190.36,0.6761982]
[1734728884454,20.0,190.4,190.36,0.6761982]
[1734728884633,20.0,190.37,190.36,0.6761982]
[1734728885460,29.65242937,190.39,190.36,0.6761982]
[1734728887157,13.1309,190.39,190.36,0.6761982]
[1734728887458,13.1291,190.42,190.36,0.6761982]
[1734728887871,29.65062937,190.42,190.36,0.6761982]
[1734728889672,16.52152937,190.42,190.36,0.6761982]
[1734728889965,16.52152937,190.41,190.36,0.6761982]
[1734728890267,16.52152937,190.39,190.36,0.6761982]
[1734728890558,20.0,190.37,190.36,0.6761982]
[1734728890763,16.52152937,190.42,190.36,0.6761982]
[1734728891358,16.52152937,190.4,190.36,0.6761982]
[1734728891531,16.52152937,190.39,190.36,0.6761982]
[1734728891735,29.65252937,190.39,190.36,0.6761982]
[1734728892661,13.131,190.39,190.36,0.6761982]
[1734728893265,16.52152937,190.42,190.36,0.6761982]
[1734728893469,20.0,190.42,190.36,17.19772757]
[1734728893651,20.0,190.42,190.37,16.52152937]
[1734728893852,20.0,190.42,190.38,16.52152937]
[1734728894055,20.0,190.42,190.37,16.52152937]
[1734728894552,20.0,190.42,190.36,0.6761982]
[1734728894760,16.52152937,190.41,190.36,0.6761982]
[1734728894958,33.1288,190.42,190.36,0.6761982]
[1734728895170,33.1288,190.42,190.36,17.19772757]
[1734728895356,20.0,190.42,190.37,16.52152937]
[1734728895558,36.52152937,190.42,190.36,0.6761982]
[1734728895867,20.0,190.42,190.36,0.6761982]
[1734728896245,16.52152937,190.41,190.36,0.6761982]
[1734728896477,16.52152937,190.38,190.36,0.6761982]
[1734728897646,29.65282937,190.39,190.36,0.6761982]
[1734728897969,16.52152937,190.38,190.36,0.6761982]
[1734728898168,16.52152937,190.39,190.36,0.6761982]
[1734728898772,16.52152937,190.38,190.36,0.6761982]
[1734728899376,13.1323,190.37,190.36,0.6761982]
[1734728899541,29.65382937,190.37,190.36,0.6761982]
[1734728900168,53.43071337,190.37,190.36,9.82e-05]
[1734728901971,20.0,190.33,190.21,22.95112937]
[1734728902155,16.52152937,190.28,190.21,6.4296]
[1734728902560,16.52152937,190.29,190.21,16.52152937]
[1734728902769,16.52152937,190.26,190.2,1.5683]
[1734728902945,16.52152937,190.24,190.2,1.5683]
[1734728903450,16.52152937,190.22,190.17,0.6761982]
[1734728903646,16.52152937,190.2,190.17,0.6761982]
[1734728904145,16.52152937,190.21,190.17,0.6761982]
[1734728904743,16.52152937,190.19,190.17,0.6761982]
[1734728906170,23.776884,190.18,190.17,9.82e-05]
[1734728907277,29.66652937,190.19,190.17,9.82e-05]
[1734728909251,29.66652937,190.19,190.06,16.52152937]
[1734728909252,20.0,190.15,190.04,18.18372937]
[1734728909454,16.52152937,190.11,190.04,18.18372937]
[1734728909659,20.0,190.06,190.0,1.6523]
[1734728910072,16.52152937,190.05,189.97,17.19772757]
[1734728911375,20.0,190.06,189.99,16.52152937]
[1734728911877,16.52152937,190.09,190.01,16.52152937]
[1734728912776,16.52152937,190.11,190.03,16.52152937]
[1734728912957,16.52152937,190.14,190.06,16.52152937]
[1734728913157,16.52152937,190.12,190.05,16.52152937]
[1734728913571,16.52152937,190.13,190.05,16.52152937]
[1734728914663,16.52152937,190.11,190.03,16.52152937]
[1734728915686,16.52152937,190.05,189.98,1.5438]
[1734728916368,16.52152937,190.05,189.98,18.06532937]
[1734728917177,16.52152937,190.05,189.98,1.5438]
[1734728917357,16.52152937,190.02,189.98,1.5438]
[1734728917565,20.0,190.05,189.97,0.6761982]
[1734728917766,16.52152937,190.04,189.97,0.6761982]
[1734728918384,16.52152937,189.98,189.97,0.6761982]
[1734728919252,16.52152937,189.98,189.97,9.82e-05]
[1734728919459,40.29841337,189.98,189.97,9.82e-05]
[1734728919764,20.0,189.94,189.81,16.52152937]
[1734728919966,16.52152937,189.88,189.81,16.52152937]
[1734728920374,16.52152937,189.88,189.8,22.65212937]
[1734728920783,24.00943319,189.89,189.81,24.00943319]
[1734728922486,24.00943319,189.91,189.83,24.00943319]
[1734728923085,24.00943319,189.93,189.85,24.00943319]
[1734728923287,24.00943319,189.95,189.87,24.00943319]
[1734728923776,24.00943319,189.88,189.78,0.6761982]
[1734728923970,24.00943319,189.88,189.79,24.00943319]
[1734728924179,24.00943319,189.86,189.78,0.6761982]
[1734728924605,20.0,189.83,189.78,0.6761982]
[1734728926161,20.0,189.85,189.78,0.6761982]
[1734728927295,24.00943319,189.84,189.78,0.6761982]
[1734728929493,24.00943319,189.82,189.78,0.6761982]
[1734728929694,20.0,189.85,189.78,0.6761982]
[1734728929695,20.0,189.79,189.78,0.6761982]
[1734728933169,43.776884,189.79,189.78,9.82e-05]
[1734728933381,20.0,189.73,189.59,2.2187982]
[1734728933583,24.00943319,189.69,189.61,24.00943319]
[1734728934196,24.00943319,189.67,189.59,26.22823139]
[1734728934376,24.00943319,189.65,189.59,2.2187982]
[1734728934569,24.00943319,189.63,189.59,0.6761982]
[1734728934774,24.00943319,189.61,189.59,0.6761982]
[1734728934993,24.00943319,189.63,189.59,0.6761982]
[1734728935186,24.00943319,189.65,189.59,0.0898746]
[1734728937084,24.00943319,189.63,189.59,0.0898746]
[1734728937986,24.00943319,189.61,189.59,0.0898746]
[1734728938703,23.776884,189.6,189.59,7.46e-05]
[1734728939084,20.0,189.57,189.55,0.2288097]
[1734728939407,20.0,189.53,189.38,8.1634]
[1734728939575,24.00943319,189.43,189.3,1.5416]
[1734728939787,24.00943319,189.45,189.37,24.00943319]
[1734728940206,24.00943319,189.47,189.39,24.00943319]
[1734728940576,24.00943319,189.47,189.39,23.50943319]
[1734728940780,13.1915,189.52,189.41,24.00943319]
[1734728940781,24.00943319,189.49,189.41,24.00943319]
[1734728941080,24.00943319,189.53,189.45,24.00943319]
[1734728941408,24.00943319,189.51,189.43,24.00943319]
[1734728941592,24.00943319,189.53,189.45,24.00943319]
[1734728941790,24.00943319,189.55,189.47,24.00943319]
[1734728942000,13.186,189.6,189.43,2.33766726]
[1734728942201,24.00943319,189.56,189.48,24.00943319]
[1734728945011,24.00943319,189.5,189.42,24.00943319]
[1734728945213,20.0,189.51,189.44,24.00943319]
[1734728945395,24.00943319,189.52,189.44,24.00943319]
[1734728945895,24.00943319,189.54,189.46,24.00943319]
[1734728947294,24.00943319,189.52,189.44,25.53563319]
[1734728947695,24.00943319,189.54,189.46,24.00943319]
[1734728948705,24.00943319,189.56,189.48,24.00943319]
[1734728949099,24.00943319,189.58,189.5,24.00943319]
[1734728949613,24.00943319,189.52,189.37,13.2014]
[1734728949914,24.00943319,189.54,189.45,24.00943319]
[1734728950802,24.00943319,189.54,189.47,24.00943319]
[1734728951192,24.00943319,189.56,189.47,24.00943319]
[1734728951422,24.00943319,189.54,189.47,24.00943319]
[1734728952715,24.00943319,189.56,189.49,24.00943319]
[1734728954028,24.00943319,189.54,189.47,24.00943319]
[1734728954393,24.00943319,189.56,189.47,24.00943319]
[1734728954593,24.00943319,189.54,189.39,21.3439]
[1734728954892,24.00943319,189.52,189.44,24.00943319]
[1734728955093,24.00943319,189.5,189.39,8.144]
[1734728955314,24.00943319,189.5,189.41,24.00943319]
[1734728955517,24.00943319,189.5,189.43,24.00943319]
[1734728955721,24.00943319,189.52,189.43,24.00943319]
[1734728956295,24.00943319,189.5,189.41,24.00943319]
[1734728956607,24.00943319,189.54,189.45,24.00943319]
[1734728956812,24.00943319,189.56,189.47,24.00943319]
[1734728956990,24.00943319,189.54,189.47,24.00943319]
[1734728957197,24.00943319,189.54,189.45,24.00943319]
[1734728958211,24.00943319,189.48,189.41,24.00943319]
[1734728958525,24.00943319,189.48,189.39,32.15343319]
[1734728959519,24.00943319,189.48,189.35,0.79172939]
[1734728959520,20.0,189.45,189.35,0.79172939]
[1734728959722,24.00943319,189.44,189.35,24.00943319]
[1734728961228,24.00943319,189.42,189.35,24.00943319]
[1734728961531,24.00943319,189.42,189.33,24.00943319]
[1734728961821,24.00943319,189.4,189.31,24.00943319]
[1734728962200,24.00943319,189.38,189.29,1.5299]
[1734728962406,24.00943319,189.38,189.3,24.00943319]
[1734728963318,24.00943319,189.36,189.24,11.5843]
[1734728963823,6.1672,189.35,189.24,10.0]
[1734728964124,20.0,189.32,189.24,10.0]
[1734728964300,24.00943319,189.33,189.25,24.00943319]
[1734728964499,24.00943319,189.31,189.24,10.0]
[1734728964927,24.00943319,189.35,189.25,24.00943319]
[1734728965132,20.0,189.37,189.25,24.00943319]
[1734728965331,24.00943319,189.33,189.25,24.00943319]
[1734728966205,24.00943319,189.34,189.26,23.776884]
[1734728966702,24.00943319,189.34,189.27,24.00943319]
[1734728967027,24.00943319,189.39,189.31,24.00943319]
[1734728968516,24.00943319,189.37,189.3,23.776884]
[1734728969633,24.00943319,189.32,189.24,10.0]
[1734728970305,24.00943319,189.28,189.24,10.0]
[1734728971321,24.00943319,189.26,189.24,10.0]
[1734728971732,24.00943319,189.28,189.24,10.0]
[1734728973714,24.00943319,189.3,189.24,10.0]
[1734728973910,26.4033,189.37,189.24,10.0]
[1734728973911,26.3974,189.42,189.26,24.00943319]
[1734728974116,13.196,189.45,189.31,24.00943319]
[1734728974117,24.00943319,189.41,189.31,24.00943319]
[1734728974637,24.00943319,189.35,189.26,24.00943319]
[1734728975616,13.2023,189.37,189.28,24.00943319]
[1734728975816,24.00943319,189.36,189.27,23.776884]
[1734728976040,24.00943319,189.36,189.27,47.78631719]
[1734728976709,13.2023,189.37,189.29,24.00943319]
[1734728976930,24.00943319,189.38,189.3,23.776884]
[1734728977920,24.00943319,189.4,189.31,24.00943319]
[1734728978126,24.00943319,189.4,189.32,23.776884]
[1734728978323,24.00943319,189.42,189.34,23.776884]
[1734728978623,37.20623319,189.44,189.37,24.00943319]
[1734728979435,37.20623319,189.44,189.35,24.00943319]
[1734728979620,24.00943319,189.39,189.25,8.0992]
[1734728979940,24.00943319,189.37,189.28,24.00943319]
[1734728980116,24.00943319,189.35,189.26,24.00943319]
[1734728980829,6.4348,189.46,189.33,24.00943319]
[1734728981019,30.44423319,189.46,189.37,24.00943319]
[1734728982360,24.00943319,189.44,189.37,24.00943319]
[1734728983039,24.00943319,189.44,189.35,24.00943319]
[1734728983538,30.44423319,189.46,189.39,24.00943319]
[1734728984320,24.00943319,189.46,189.39,24.00943319]
[1734728984534,13.196,189.45,189.36,0.79190175]
[1734728984739,24.00943319,189.44,189.35,24.00943319]
[1734728985121,13.196,189.45,189.27,47.13103726]
[1734728985122,24.00943319,189.38,189.3,24.00943319]
[1734728987726,24.00943319,189.42,189.34,24.00943319]
[1734728988528,13.1967,189.44,189.32,24.00943319]
[1734728988529,24.00943319,189.4,189.32,24.00943319]
[1734728989521,24.00943319,189.38,189.27,0.79213209]
[1734728989722,24.00943319,189.34,189.25,24.00943319]
[1734728990764,24.00943319,189.32,189.26,23.776884]
[1734728990962,24.00943319,189.3,189.24,10.0]
[1734728992516,13.2072,189.29,189.24,10.0]
[1734728993430,24.00943319,189.28,189.24,10.0]
[1734728994644,20.0,189.25,189.24,6.3108]
[1734728995075,20.0,189.25,189.24,0.0001]
[1734728995776,37.21873319,189.26,189.24,0.0001]
[1734728995777,24.00943319,189.26,189.24,0.0001]
[1734728995938,26.4019,189.38,189.24,0.0001]
[1734728995939,24.00943319,189.3,189.24,0.0001]
[1734728999163,24.00943319,189.28,189.24,0.0001]
[1734728999460,24.00943319,189.3,189.24,0.0001]
[1734729000954,37.21453319,189.32,189.24,24.00953319]
[1734729001154,37.21453319,189.32,189.24,0.0001]
[1734729001570,24.00943319,189.3,189.24,0.0001]
[1734729001771,24.00943319,189.26,189.24,0.0001]
[1734729001974,24.00943319,189.28,189.24,0.0001]
[1734729004045,24.00943319,189.3,189.24,0.0001]
[1734729004359,24.00943319,189.32,189.25,24.00943319]
[1734729004953,24.00943319,189.34,189.25,24.00943319]
[1734729005289,24.00943319,189.32,189.25,24.00943319]
[1734729005775,24.00943319,189.34,189.25,24.00943319]
[1734729006378,6.2281,189.26,189.24,0.0001]
[1734729006674,24.00943319,189.25,189.24,0.0001]
[1734729007571,37.21943319,189.25,189.24,0.0001]
[1734729010250,20.0,189.22,189.17,0.6387726]
[1734729010456,24.00943319,189.18,189.17,0.6387726]
[1734729011378,24.00943319,189.12,189.05,1.6555]
[1734729011602,24.00943319,189.1,189.05,1.6555]
[1734729012158,24.00943319,189.18,189.0,29.51963319]
[1734729012159,24.00943319,189.08,189.0,29.51963319]
[1734729012464,24.00943319,189.14,189.06,24.00943319]
[1734729012883,24.00943319,189.14,189.04,24.00943319]
[1734729013084,24.00943319,189.12,189.04,24.00943319]
[1734729013967,24.00943319,189.14,189.04,24.00943319]
[1734729014389,24.00943319,189.17,189.09,24.00943319]
[1734729014687,24.00943319,189.19,189.11,24.00943319]
[1734729015069,24.00943319,189.17,189.1,1.5011]
[1734729016593,24.00943319,189.13,189.06,6.5269]
[1734729017591,24.00943319,189.15,189.07,24.00943319]
[1734729019584,24.00943319,189.15,189.07,23.776884]
[1734729019795,24.00943319,189.15,189.07,24.00943319]
[1734729021464,24.00943319,189.16,189.08,24.00943319]
[1734729023698,24.00943319,189.17,189.1,24.00943319]
[1734729024572,24.00943319,189.15,189.08,24.00943319]
[1734729024901,24.00943319,189.15,189.07,24.00943319]
[1734729025071,24.00943319,189.13,189.06,24.00943319]
[1734729025275,24.00943319,189.12,189.05,1.512]
[1734729026271,24.00943319,189.11,189.05,1.512]
[1734729026476,24.00943319,189.1,189.02,30.05753319]
[1734729026880,24.00943319,189.13,189.05,24.00943319]
[1734729027083,24.00943319,189.13,189.06,24.00943319]
[1734729027689,30.42933319,189.15,189.07,24.00943319]
[1734729027886,24.00943319,189.15,189.08,24.00943319]
[1734729028191,24.00943319,189.14,189.06,24.00943319]
[1734729028392,24.00943319,189.15,189.07,24.00943319]
[1734729028797,24.00943319,189.16,189.08,24.00943319]
[1734729029302,24.00943319,189.15,189.08,24.00943319]
[1734729029708,24.00943319,189.15,189.08,23.50943319]
[1734729030091,24.00943319,189.16,189.08,23.50943319]
[1734729030501,6.1978,189.2,189.09,24.00943319]
[1734729030700,24.00943319,189.17,189.1,24.00943319]
[1734729031698,24.00943319,189.17,189.09,24.00943319]
[1734729032377,24.00943319,189.17,189.1,24.00943319]
[1734729033474,24.00943319,189.18,189.05,0.79307221]
[1734729033803,24.00943319,189.18,189.11,24.00943319]
[1734729034140,24.00943319,189.13,189.05,24.00943319]
[1734729034302,24.00943319,189.12,189.05,24.00943319]
[1734729034479,24.00943319,189.12,189.04,24.00943319]
[1734729034680,24.00943319,189.11,189.03,24.00943319]
[1734729034898,24.00943319,189.12,189.04,24.00943319]
[1734729035613,24.00943319,189.08,189.0,28.00943319]
[1734729035817,24.00943319,189.02,189.0,4.0]
[1734729036015,24.00943319,189.09,189.0,4.0]
[1734729036016,24.00943319,189.01,189.0,4.0]
[1734729038183,24.00943319,188.92,188.88,4.65]
[1734729038384,24.00943319,188.94,188.88,4.65]
[1734729038778,24.00943319,188.92,188.88,4.65]
[1734729039205,24.00943319,188.9,188.88,4.65]
[1734729040606,24.00943319,188.92,188.88,4.65]
[1734729041105,24.00943319,188.9,188.88,4.65]
[1734729041790,24.00943319,188.92,188.88,4.65]
[1734729042300,24.00943319,188.94,188.88,4.65]
[1734729042988,24.00943319,188.9,188.88,4.65]
[1734729043708,24.00943319,188.92,188.88,4.65]
[1734729044311,24.00943319,188.89,188.88,4.65]
[1734729050396,24.00943319,188.89,188.88,3.15]
[1734729050912,7.7112,188.88,188.79,0.6677073]
[1734729051107,24.00943319,188.8,188.79,0.6677073]
[1734729051613,24.00943319,188.8,188.6,0.6677073]
[1734729051614,20.0,188.77,188.63,24.00943319]
[1734729051821,24.00943319,188.71,188.63,24.00943319]
[1734729052312,14.00943319,188.71,188.6,0.6677073]
[1734729052612,24.00943319,188.7,188.62,24.00943319]
[1734729052915,24.00943319,188.72,188.64,24.00943319]
[1734729053301,24.00943319,188.72,188.62,0.79493889]
[1734729053302,24.00943319,188.65,188.6,0.6677073]
[1734729053506,24.00943319,188.69,188.6,24.67714049]
[1734729053901,24.00943319,188.67,188.6,0.6677073]
[1734729054100,24.00943319,188.63,188.6,0.1677073]
[1734729054404,24.00943319,188.65,188.6,0.1677073]
[1734729055214,24.00943319,188.71,188.61,24.00943319]
[1734729055419,24.00943319,188.71,188.62,8.2207]
[1734729055625,24.00943319,188.71,188.63,24.00943319]
[1734729057828,24.00943319,188.71,188.62,8.2207]
[1734729058211,24.00943319,188.69,188.62,8.2207]
[1734729058516,24.00943319,188.71,188.63,24.00943319]
[1734729058712,24.00943319,188.69,188.62,8.2207]
[1734729058913,24.00943319,188.67,188.6,0.1677073]
[1734729059312,24.00943319,188.71,188.62,24.00943319]
[1734729059508,24.00943319,188.73,188.66,24.00943319]
[1734729060325,24.00943319,188.73,188.65,6.6484]
[1734729060631,19.9063,188.8,188.67,24.00943319]
[1734729060632,24.00943319,188.75,188.67,24.00943319]
[1734729060928,24.00943319,188.71,188.66,1.6481]